bitfinex-derivatives/quotes_BNBF0:USTF0_20250305
["timestamp","ask_amount","ask_price","bid_price","bid_amount"]
[1741157201089,0.31071381,592.06,590.91,1.27249495]
[1741157201792,0.31071381,592.06,590.85,1.27249495]
[1741157202496,0.3378093,592.05,590.85,1.27249495]
[1741157202788,0.31075135,592.04,590.85,1.27249495]
[1741157202993,0.33782071,592.03,590.85,1.27249495]
[1741157203185,0.31075135,592.02,590.85,1.27249495]
[1741157203391,0.31075135,592.02,590.86,1.27249495]
[1741157203793,0.33783213,592.01,590.86,1.27249495]
[1741157203993,0.31075135,592.0,590.86,1.27249495]
[1741157204185,0.33784354,591.99,590.86,1.27249495]
[1741157204390,0.31075135,591.98,590.86,1.27249495]
[1741157204587,0.33785495,591.97,590.86,1.27249495]
[1741157204893,0.31075135,591.96,590.82,1.27249495]
[1741157206095,0.33785495,591.97,590.82,1.27249495]
[1741157207489,0.33785495,591.97,590.79,1.76574306]
[1741157207688,0.33785495,591.97,590.78,1.27249495]
[1741157208196,0.31068078,591.96,590.79,1.76513105]
[1741157209498,0.31068078,591.96,590.91,1.27249495]
[1741157212101,0.31068078,591.96,590.88,1.27249495]
[1741157212594,0.31068078,591.96,590.89,0.33847247]
[1741157213494,0.33785495,591.97,590.89,0.33847247]
[1741157217999,0.33785495,591.97,590.93,1.27249495]
[1741157218204,0.33785495,591.97,590.94,0.33844383]
[1741157222413,2.85500701,592.66,590.94,0.33844383]
[1741157222609,0.337473,592.64,590.94,0.33844383]
[1741157222809,0.31060534,592.63,590.94,0.33844383]
[1741157223214,0.33749008,592.61,590.94,0.33844383]
[1741157223410,0.31060534,592.6,590.94,0.33844383]
[1741157223611,0.33750717,592.58,590.94,0.33844383]
[1741157223810,0.31060534,592.57,590.94,0.33844383]
[1741157224011,0.33752425,592.55,590.94,0.33844383]
[1741157224211,0.31060534,592.54,590.94,0.33844383]
[1741157225510,0.31060534,592.54,591.0,1.27249495]
[1741157226312,0.31060534,592.54,591.02,0.33839802]
[1741157227719,0.31060534,592.54,591.03,1.27249495]
[1741157230019,0.33753565,592.53,591.05,0.33838084]
[1741157230213,0.31060534,592.52,591.05,0.33838084]
[1741157231919,0.33753565,592.53,591.05,0.33838084]
[1741157232123,0.31054353,592.52,591.05,0.33838084]
[1741157232423,0.33754704,592.51,591.05,0.33838084]
[1741157232623,0.31054353,592.5,591.05,0.33838084]
[1741157233524,0.33755843,592.49,591.05,0.33838084]
[1741157233725,0.31056173,592.48,591.05,0.33838084]
[1741157234026,0.33756983,592.47,591.05,0.33838084]
[1741157234221,0.31056173,592.46,591.05,0.33838084]
[1741157234419,0.33758123,592.45,591.05,0.33838084]
[1741157234617,0.31056173,592.44,591.05,0.33838084]
[1741157235023,0.33759262,592.43,591.05,0.33838084]
[1741157235224,0.31056173,592.42,591.05,0.33838084]
[1741157235925,0.33760402,592.41,591.05,0.33838084]
[1741157236227,0.31056173,592.4,591.05,0.33838084]
[1741157237827,0.33761542,592.39,591.05,0.33838084]
[1741157238026,0.31056173,592.38,591.05,0.33838084]
[1741157238225,0.33762682,592.37,591.05,0.33838084]
[1741157238525,0.31056173,592.36,591.05,0.33838084]
[1741157238723,0.33763822,592.35,591.05,0.33838084]
[1741157238926,0.31056173,592.34,591.05,0.33838084]
[1741157239126,0.33764962,592.33,591.05,0.33838084]
[1741157239329,0.31056173,592.32,591.05,0.33838084]
[1741157239625,0.33766102,592.31,591.05,0.33838084]
[1741157239825,0.31056173,592.3,591.05,0.33838084]
[1741157240126,0.33767242,592.29,591.05,0.33838084]
[1741157240325,0.31056173,592.28,591.05,0.33838084]
[1741157241928,0.33768382,592.27,591.05,0.33838084]
[1741157242129,0.31056173,592.26,591.05,0.33838084]
[1741157242325,0.33769523,592.25,591.05,0.33838084]
[1741157242629,0.31056173,592.24,591.08,1.27249495]
[1741157242823,0.33770663,592.23,591.08,1.27249495]
[1741157243029,0.31056173,592.22,591.08,1.27249495]
[1741157243223,0.64827406,592.22,591.08,1.27249495]
[1741157243429,0.31056173,592.21,591.08,1.27249495]
[1741157243830,0.33772374,592.2,591.08,1.27249495]
[1741157244031,0.31056173,592.19,591.08,1.27249495]
[1741157244432,0.31056173,592.19,591.05,1.61087579]
[1741157244931,0.33772374,592.2,591.05,1.61087579]
[1741157244932,0.31063752,592.18,591.05,1.61087579]
[1741157245135,0.31063752,592.19,591.05,1.61087579]
[1741157245330,0.31063752,592.18,591.05,1.61087579]
[1741157245528,0.31063752,592.17,591.05,1.61087579]
[1741157245728,0.31063752,592.16,591.05,1.61087579]
[1741157245929,0.31063752,592.15,591.05,1.61087579]
[1741157246127,0.31063752,592.19,591.05,1.61087579]
[1741157246433,0.31063752,592.18,591.1,1.27249495]
[1741157246634,0.33773514,592.18,591.1,1.27249495]
[1741157246834,0.31063752,592.17,591.1,1.27249495]
[1741157247034,0.33774655,592.16,591.1,1.27249495]
[1741157247236,0.31063752,592.15,591.1,1.27249495]
[1741157247635,0.64838977,592.15,591.1,1.27249495]
[1741157247835,0.31063752,592.14,591.1,1.27249495]
[1741157248235,0.33775225,592.15,591.1,1.27249495]
[1741157248535,0.31067501,592.14,591.1,1.27249495]
[1741157248731,0.33775225,592.15,591.1,1.27249495]
[1741157248938,0.33775225,592.15,591.05,0.33838084]
[1741157249441,0.31067697,592.14,591.05,0.33838084]
[1741157249638,0.33775225,592.15,591.05,0.33838084]
[1741157252040,0.31068645,592.14,591.05,0.33838084]
[1741157252940,0.31072179,592.13,591.05,0.33838084]
[1741157253145,0.31072179,592.12,591.05,0.33838084]
[1741157253344,0.31072179,592.14,591.05,0.33838084]
[1741157253545,0.31072179,592.13,591.05,0.33838084]
[1741157253850,0.31072179,592.12,591.05,0.33838084]
[1741157254047,0.31072179,592.11,591.05,0.33838084]
[1741157254246,0.31072179,592.1,591.05,0.33838084]
[1741157254446,0.33775225,592.15,591.05,0.33838084]
[1741157254447,0.31072179,592.09,591.05,0.33838084]
[1741157254647,0.31072179,592.08,591.05,0.33838084]
[1741157254842,0.31072179,592.14,591.05,0.33838084]
[1741157255041,0.64848545,592.13,591.05,0.33838084]
[1741157255248,0.31072179,592.12,591.05,0.33838084]
[1741157258043,0.33776366,592.13,591.05,0.33838084]
[1741157258241,0.31068816,592.12,591.05,0.33838084]
[1741157259243,0.64845753,592.12,591.05,0.33838084]
[1741157259441,0.31068816,592.11,591.05,0.33838084]
[1741157259742,0.33778078,592.1,591.05,0.33838084]
[1741157259946,0.31068816,592.09,591.05,0.33838084]
[1741157260140,0.33779219,592.08,591.05,0.33838084]
[1741157260341,0.31068816,592.07,591.05,0.33838084]
[1741157260745,0.3378036,592.06,591.05,0.33838084]
[1741157260945,0.31068816,592.05,591.05,0.33838084]
[1741157262043,0.33781501,592.04,591.05,0.33838084]
[1741157262246,0.31068816,592.03,591.05,0.33838084]
[1741157262445,0.33782642,592.02,591.05,0.33838084]
[1741157262747,0.31068816,592.01,591.05,0.33838084]
[1741157263847,0.31068816,592.01,590.86,1.27249495]
[1741157264248,0.33783783,592.0,590.86,1.27249495]
[1741157264449,0.31068816,591.99,590.86,1.27249495]
[1741157264649,0.33784925,591.98,590.86,1.27249495]
[1741157264849,0.31068816,591.97,590.86,1.27249495]
[1741157265049,0.33786066,591.96,590.87,1.76578786]
[1741157265249,0.31068816,591.95,590.87,1.76578786]
[1741157265545,0.33787208,591.94,590.87,1.76578786]
[1741157265746,0.31068816,591.93,590.87,1.76578786]
[1741157265950,0.33788349,591.92,590.87,1.76578786]
[1741157266144,0.31068816,591.91,590.87,1.76578786]
[1741157266749,0.33789491,591.9,590.78,1.27249495]
[1741157267645,0.33789491,591.9,590.79,1.76570573]
[1741157267846,0.33789491,591.9,590.78,1.27249495]
[1741157268151,0.33789491,591.9,590.79,1.76574306]
[1741157270854,0.33789491,591.9,590.44,1.2546316]
[1741157271055,0.33789491,591.9,590.79,1.76583266]
[1741157271354,0.33789491,591.9,590.44,1.2546316]
[1741157271554,0.33789491,591.9,590.45,0.3387247]
[1741157271952,0.33789491,591.9,590.45,2.10460963]
[1741157272654,0.33789491,591.9,590.63,1.2546316]
[1741157274955,0.33789491,591.9,590.75,1.2546316]
[1741157276350,0.31078984,591.89,590.75,1.2546316]
[1741157276555,0.33790633,591.88,590.75,1.2546316]
[1741157276855,0.31078984,591.87,590.83,1.2546316]
[1741157277050,0.33791775,591.86,590.83,1.2546316]
[1741157277255,0.31078984,591.85,590.83,1.2546316]
[1741157278952,0.33792346,591.85,590.83,1.2546316]
[1741157279153,0.64875745,591.84,590.83,1.2546316]
[1741157279355,0.64876315,591.83,590.83,1.2546316]
[1741157279553,0.64876887,591.82,590.83,1.2546316]
[1741157279749,0.64877458,591.81,590.83,1.2546316]
[1741157279954,0.64878029,591.8,590.83,1.2546316]
[1741157280151,0.648786,591.79,590.83,1.2546316]
[1741157280353,0.31082828,591.78,590.83,1.2546316]
[1741157280555,0.31085895,591.77,590.83,1.2546316]
[1741157280755,0.31085895,591.78,590.83,1.2546316]
[1741157280953,0.31085895,591.77,590.83,1.2546316]
[1741157281156,0.31085895,591.78,590.83,1.2546316]
[1741157281355,0.31085895,591.77,590.74,1.2546316]
[1741157281553,0.31085895,591.78,590.74,1.2546316]
[1741157281755,0.31085895,591.77,590.74,1.2546316]
[1741157281953,0.31085895,591.78,590.74,1.2546316]
[1741157283460,0.31085895,591.78,590.71,3.02075552]
[1741157285662,0.31085895,591.78,590.73,1.27249495]
[1741157285861,0.31085895,591.78,590.81,1.2546316]
[1741157287058,0.33795772,591.79,590.81,1.2546316]
[1741157287256,0.31081842,591.78,590.81,1.2546316]
[1741157287658,0.31081842,591.78,590.83,1.2546316]
[1741157287965,0.31081729,591.77,590.83,1.2546316]
[1741157288162,0.31081729,591.78,590.83,1.2546316]
[1741157289161,0.31081729,591.78,590.85,1.2546316]
[1741157291563,0.31081729,591.78,590.86,1.2546316]
[1741157292662,0.3108069,591.77,590.86,1.2546316]
[1741157292867,0.3108069,591.78,590.86,1.2546316]
[1741157293167,0.3108069,591.77,590.94,1.2546316]
[1741157293365,0.3108069,591.78,590.94,1.2546316]
[1741157293962,0.33795772,591.79,590.94,1.2546316]
[1741157295165,0.33795772,591.79,590.92,1.27249495]
[1741157296566,0.33795772,591.79,590.94,1.27249495]
[1741157298862,0.33795772,591.79,590.89,3.03779762]
[1741157300775,0.33795772,591.79,590.88,1.27249495]
[1741157301267,0.33795772,591.79,590.89,1.76534745]
[1741157303772,0.33795772,591.79,590.87,1.27249495]
[1741157304170,0.33795772,591.79,590.89,1.76539969]
[1741157306976,0.33795772,591.79,590.87,1.27249495]
[1741157307174,0.33795772,591.79,590.89,1.76552657]
[1741157309279,0.33795772,591.79,590.93,1.27249495]
[1741157311778,0.33795772,591.79,590.99,1.27249495]
[1741157313877,0.33795772,591.79,590.93,1.7653176]
[1741157315583,0.33795772,591.79,590.95,1.27249495]
[1741157315783,0.96501331,592.18,590.95,1.27249495]
[1741157315984,0.64842707,592.17,590.95,1.27249495]
[1741157316186,0.64843277,592.16,590.95,1.27249495]
[1741157316383,0.31068622,592.15,590.95,1.27249495]
[1741157317689,0.31068622,592.15,591.11,1.27249495]
[1741157318183,0.31068225,592.14,591.11,1.27249495]
[1741157318389,0.31068225,592.13,591.11,1.27249495]
[1741157318592,0.31068225,592.12,591.11,1.27249495]
[1741157318786,0.31068225,592.11,591.11,1.27249495]
[1741157318991,0.31068225,592.1,591.11,1.27249495]
[1741157319288,0.31068225,592.09,591.11,1.27249495]
[1741157319492,0.31068225,592.08,591.11,1.27249495]
[1741157319691,0.31068225,592.15,591.11,1.27249495]
[1741157320592,0.31068225,592.15,591.1,1.27249495]
[1741157321595,0.31067989,592.14,591.1,1.27249495]
[1741157321789,0.31067989,592.15,591.1,1.27249495]
[1741157322095,0.31067989,592.14,591.1,1.27249495]
[1741157322289,0.33774655,592.16,591.1,1.27249495]
[1741157322493,0.31067955,592.15,591.05,1.27249495]
[1741157323998,0.31067955,592.15,591.04,1.27249495]
[1741157325799,0.31067955,592.15,591.08,1.27249495]
[1741157327896,0.31067955,592.15,591.13,1.27249495]
[1741157330268,0.31061639,592.14,591.2,1.27249495]
[1741157330402,0.31061639,592.13,591.2,1.27249495]
[1741157330601,0.31061639,592.15,591.2,1.27249495]
[1741157330797,0.31061639,592.14,591.2,1.27249495]
[1741157330998,0.31061639,592.15,591.2,1.27249495]
[1741157331203,0.33774655,592.16,591.2,1.27249495]
[1741157331401,0.31059423,592.15,591.2,1.27249495]
[1741157332003,0.33774655,592.16,591.14,1.27249495]
[1741157334203,0.33774655,592.16,591.17,1.27249495]
[1741157335509,0.33774655,592.16,591.22,1.27249495]
[1741157338105,0.33774655,592.16,591.19,1.27249495]
[1741157340211,0.33774655,592.16,591.2,1.27249495]
[1741157342505,0.33774655,592.16,591.21,1.27249495]
[1741157345612,0.33774655,592.16,591.17,1.76426601]
[1741157345814,0.33774655,592.16,590.95,1.27249495]
[1741157346916,0.33774655,592.16,590.96,1.76451201]
[1741157347811,0.33774655,592.16,591.21,1.27249495]
[1741157350618,0.33774655,592.16,591.16,1.27249495]
[1741157352323,0.33774655,592.16,591.17,0.33831216]
[1741157353422,0.33774655,592.16,591.18,1.27249495]
[1741157355322,1.65736869,592.71,591.22,1.27249495]
[1741157355622,0.33744453,592.69,591.22,1.27249495]
[1741157355823,0.31049987,592.68,591.23,0.33827782]
[1741157356413,0.33745591,592.67,591.23,0.33827782]
[1741157356617,0.31049987,592.66,591.28,1.27249495]
[1741157356822,0.3374673,592.65,591.28,1.27249495]
[1741157357024,0.31049987,592.64,591.28,1.27249495]
[1741157357324,0.33747869,592.63,591.28,1.27249495]
[1741157357622,0.31049987,592.62,591.28,1.27249495]
[1741157358021,0.33749008,592.61,591.28,1.27249495]
[1741157358218,0.31049987,592.6,591.25,1.27249495]
[1741157358923,0.33750147,592.59,591.26,0.33826066]
[1741157359122,0.31049987,592.58,591.26,0.33826066]
[1741157359323,0.33751286,592.57,591.26,0.33826066]
[1741157359518,0.31049987,592.56,591.26,0.33826066]
[1741157359717,0.33752425,592.55,591.26,0.33826066]
[1741157359922,0.31049987,592.54,591.26,0.33826066]
[1741157360122,0.33753565,592.53,591.26,0.33826066]
[1741157360323,0.33753565,592.53,591.3,1.27249495]
[1741157360524,0.31051993,592.52,591.3,1.27249495]
[1741157360723,0.33754704,592.51,591.3,1.27249495]
[1741157360924,0.31051993,592.5,591.3,1.27249495]
[1741157361126,0.33755843,592.49,591.3,1.27249495]
[1741157361322,0.31051993,592.48,591.3,1.27249495]
[1741157361622,0.33756983,592.47,591.3,1.27249495]
[1741157361824,0.31051993,592.46,591.3,1.27249495]
[1741157362016,0.31052373,592.45,591.3,1.27249495]
[1741157362217,0.31052373,592.46,591.32,1.27249495]
[1741157362419,0.31052373,592.45,591.32,1.27249495]
[1741157362620,0.33758692,592.44,591.32,1.27249495]
[1741157362821,0.31052373,592.43,591.32,1.27249495]
[1741157364025,0.33759832,592.42,591.26,1.61075561]
[1741157364220,0.31052373,592.41,591.26,1.61075561]
[1741157364418,0.33760972,592.4,591.26,1.61075561]
[1741157364618,0.31052373,592.39,591.26,1.61075561]
[1741157364918,0.64813915,592.39,591.26,1.61075561]
[1741157365120,0.31052373,592.38,591.26,1.61075561]
[1741157365320,0.31052373,592.38,591.32,1.27249495]
[1741157365523,0.33761542,592.39,591.32,1.27249495]
[1741157365724,0.31052624,592.38,591.32,1.27249495]
[1741157366618,0.31052624,592.38,591.26,0.33826066]
[1741157367519,0.33761542,592.39,591.26,0.33826066]
[1741157368023,0.31051986,592.38,591.26,0.33826066]
[1741157369017,0.31052904,592.37,591.26,0.33826066]
[1741157369217,0.33761542,592.39,591.26,0.33826066]
[1741157369526,0.31052938,592.38,591.26,0.33826066]
[1741157370627,0.31052961,592.37,591.26,0.33826066]
[1741157370820,0.31052961,592.38,591.26,0.33826066]
[1741157371121,0.31052889,592.37,591.26,0.33826066]
[1741157371321,0.31052889,592.38,591.26,0.33826066]
[1741157371526,0.33761542,592.39,591.26,0.33826066]
[1741157371724,0.31052923,592.38,591.26,0.33826066]
[1741157374022,0.33761542,592.39,591.26,0.33826066]
[1741157374227,0.31052435,592.38,591.26,0.33826066]
[1741157374827,0.31052435,592.38,591.3,1.27249495]
[1741157375729,0.31052454,592.37,591.3,1.27249495]
[1741157375929,0.33761542,592.39,591.3,1.27249495]
[1741157376530,0.33761542,592.39,591.53,1.27249495]
[1741157378130,0.33761542,592.39,591.26,0.33826066]
[1741157384430,0.33761542,592.39,591.43,1.27249495]
[1741157386131,0.33761542,592.39,591.26,0.33826066]
[1741157387734,0.33761542,592.39,591.41,1.27249495]
[1741157389932,0.33761542,592.39,591.42,1.27249495]
[1741157391736,0.3105185,592.38,591.42,1.27249495]
[1741157392142,0.3105185,592.38,591.43,1.27249495]
[1741157394344,0.33761542,592.39,591.3,1.76437037]
[1741157394345,0.33761542,592.39,591.48,1.27249495]
[1741157396244,0.33761542,592.39,591.3,1.76437037]
[1741157396849,0.33761542,592.39,591.26,0.33826066]
[1741157397245,0.33761542,592.39,591.3,1.76414676]
[1741157399843,0.33761542,592.39,591.26,0.33826066]
[1741157400245,0.33761542,592.39,591.3,1.76422129]
[1741157401846,0.3105605,592.38,591.3,1.76422129]
[1741157402146,0.33762682,592.37,591.3,1.76422129]
[1741157402543,0.31057888,592.36,591.3,1.76422129]
[1741157402742,0.33763822,592.35,591.3,1.76422129]
[1741157402946,0.33763822,592.35,591.26,0.33826066]
[1741157403247,0.33763822,592.35,591.39,1.27249495]
[1741157405049,0.33763822,592.35,591.3,1.76440764]
[1741157405943,0.33763822,592.35,591.26,0.33826066]
[1741157406248,0.31047702,592.34,591.3,1.76419893]
[1741157406749,0.31047702,592.34,591.62,1.27249495]
[1741157410447,0.31047702,592.34,591.61,1.27249495]
[1741157410851,0.31048509,592.33,591.61,1.27249495]
[1741157411046,0.31048509,592.34,591.61,1.27249495]
[1741157411250,0.31048509,592.33,591.61,1.27249495]
[1741157411447,0.31048509,592.34,591.61,1.27249495]
[1741157411646,0.31048509,592.33,591.61,1.27249495]
[1741157411849,0.31048509,592.32,591.61,1.27249495]
[1741157412050,0.31048509,592.32,591.48,1.52699394]
[1741157412051,0.31048509,592.34,591.56,1.27249495]
[1741157412252,0.31048509,592.33,591.56,1.27249495]
[1741157412552,0.31048509,592.32,591.56,1.27249495]
[1741157412954,0.33763822,592.35,591.56,1.27249495]
[1741157413150,0.31049407,592.34,591.56,1.27249495]
[1741157414352,0.31049407,592.34,591.49,1.27249495]
[1741157414550,0.33763822,592.35,591.49,1.27249495]
[1741157416454,0.33763822,592.35,591.36,1.76399772]
[1741157417953,0.33763822,592.35,591.23,1.27249495]
[1741157418750,0.33763822,592.35,591.26,1.61075561]
[1741157418948,0.33763822,592.35,591.27,1.76426601]
[1741157420857,0.33763822,592.35,591.28,1.27249495]
[1741157422657,0.33763822,592.35,591.32,1.27249495]
[1741157426560,0.33763822,592.35,591.29,1.76424365]
[1741157426561,0.33763822,592.35,591.4,1.27249495]
[1741157428062,0.31050997,592.34,591.4,1.27249495]
[1741157431063,0.33763822,592.35,591.4,1.27249495]
[1741157431364,0.31052465,592.34,591.4,1.27249495]
[1741157432465,0.33764962,592.33,591.4,1.27249495]
[1741157432763,0.31057174,592.32,591.4,1.27249495]
[1741157433267,0.31057174,592.32,591.43,1.27249495]
[1741157434573,0.31057066,592.31,591.43,1.27249495]
[1741157434871,0.31057066,592.3,591.43,1.27249495]
[1741157435073,0.31057066,592.29,591.42,1.27249495]
[1741157435271,0.31057066,592.28,591.42,1.27249495]
[1741157435470,0.31057066,592.32,591.42,1.27249495]
[1741157435667,0.31056948,592.31,591.42,1.27249495]
[1741157435871,0.31056948,592.3,591.42,1.27249495]
[1741157436071,0.31056948,592.32,591.42,1.27249495]
[1741157436270,0.31056506,592.31,591.42,1.27249495]
[1741157436466,0.31056506,592.3,591.42,1.27249495]
[1741157436671,0.31056506,592.29,591.42,1.27249495]
[1741157436873,0.31056506,592.28,591.42,1.27249495]
[1741157437073,0.31056506,592.32,591.31,1.76451201]
[1741157437275,0.3105601,592.31,591.31,1.76451201]
[1741157437470,0.3105601,592.3,591.31,1.76451201]
[1741157437672,0.3105601,592.32,591.31,1.76451201]
[1741157437873,0.31056174,592.31,591.31,1.76451201]
[1741157438074,0.31056174,592.32,591.31,1.76451201]
[1741157439069,0.31056174,592.32,591.26,0.33826066]
[1741157439470,0.31056174,592.32,591.31,1.76459403]
[1741157439672,0.31055766,592.31,591.31,1.76459403]
[1741157439875,0.31055766,592.32,591.31,1.76459403]
[1741157440075,0.31055766,592.31,591.31,1.76459403]
[1741157440274,0.31055766,592.3,591.31,1.76459403]
[1741157440475,0.33767242,592.29,591.31,1.76459403]
[1741157440671,0.31055766,592.28,591.26,0.33826066]
[1741157441972,0.33767812,592.28,591.26,0.33826066]
[1741157443885,0.31059959,592.27,591.26,0.33826066]
[1741157444187,0.33768952,592.26,591.26,0.33826066]
[1741157444384,0.31059959,592.25,591.26,0.33826066]
[1741157444584,0.33770093,592.24,591.26,0.33826066]
[1741157444783,0.31059959,592.23,591.26,0.33826066]
[1741157445385,0.64830622,592.23,591.26,0.33826066]
[1741157445585,0.31059959,592.22,591.26,0.33826066]
[1741157446380,0.31062287,592.21,591.26,0.33826066]
[1741157446581,0.31062287,592.2,591.26,0.33826066]
[1741157446782,0.31062287,592.19,591.26,0.33826066]
[1741157447086,0.33770663,592.23,591.26,0.33826066]
[1741157447393,0.31062287,592.22,591.26,0.33826066]
[1741157447984,0.31062319,592.21,591.26,0.33826066]
[1741157448183,0.33770663,592.23,591.26,0.33826066]
[1741157448184,0.31062319,592.2,591.26,0.33826066]
[1741157448389,0.31062319,592.19,591.26,0.33826066]
[1741157448588,0.31062319,592.22,591.26,0.33826066]
[1741157449785,0.33771803,592.21,591.26,0.33826066]
[1741157449987,0.31062319,592.2,591.26,0.33826066]
[1741157450585,0.31062319,592.2,591.12,1.27249495]
[1741157450790,0.33772944,592.19,591.12,1.27249495]
[1741157451088,0.31062319,592.18,591.12,3.03761854]
[1741157451285,0.33774085,592.17,591.12,1.76512359]
[1741157451484,0.31065838,592.16,591.12,1.76512359]
[1741157451688,0.33775225,592.15,591.12,1.76512359]
[1741157454092,0.33775225,592.15,591.12,1.76484012]
[1741157456290,0.31065256,592.14,591.12,1.76484012]
[1741157456594,0.33776366,592.13,591.12,1.76484012]
[1741157457094,0.33776366,592.13,590.93,1.27249495]
[1741157457293,0.33776366,592.13,591.12,1.76484758]
[1741157457693,0.33776366,592.13,590.93,1.27249495]
[1741157457894,0.33776366,592.13,591.12,1.76484758]
[1741157458095,0.31066323,592.12,590.93,1.27249495]
[1741157458291,0.33776366,592.13,590.93,1.27249495]
[1741157458495,0.31066296,592.12,590.93,1.27249495]
[1741157458695,0.31066296,592.12,590.94,1.76499677]
[1741157459898,0.64843233,592.12,590.93,1.27249495]
[1741157460099,0.31067148,592.11,590.94,1.76533252]
[1741157460300,0.31067148,592.11,591.08,1.27249495]
[1741157462805,0.33776937,592.12,591.08,1.27249495]
[1741157463004,0.31066483,592.11,591.08,1.27249495]
[1741157464202,0.31066483,592.11,591.09,1.27249495]
[1741157464805,0.33776937,592.12,591.09,1.27249495]
[1741157465206,0.31066564,592.11,591.09,1.27249495]
[1741157466210,0.31066564,592.11,590.85,1.27249495]
[1741157466508,0.31066564,592.11,590.86,0.33848965]
[1741157467205,0.31066564,592.11,590.87,1.76540715]
[1741157467408,0.31066564,592.11,590.87,2.10389108]
[1741157468111,0.33776937,592.12,590.87,2.10389108]
[1741157468313,0.31066333,592.11,590.87,2.10389108]
[1741157468512,0.31066333,592.11,590.88,0.3384782]
[1741157468711,0.33776937,592.12,590.88,0.3384782]
[1741157469811,0.33776937,592.12,590.88,1.61097315]
[1741157471814,0.33776937,592.12,591.3,1.27249495]
[1741157474115,0.33776937,592.12,591.32,1.27249495]
[1741157476315,0.33776937,592.12,591.35,1.27249495]
[1741157478920,0.33776937,592.12,591.22,1.52699394]
[1741157478921,0.33776937,592.12,590.64,1.27249495]
[1741157480321,0.31071638,592.11,590.64,1.27249495]
[1741157480517,0.33778078,592.1,590.64,1.27249495]
[1741157480722,0.31071638,592.09,590.89,1.7654594]
[1741157480925,0.33779219,592.08,590.64,1.27249495]
[1741157481222,0.31071638,592.07,590.89,1.76560122]
[1741157481720,0.3378036,592.06,590.93,1.27249495]
[1741157482018,0.31071638,592.05,590.93,1.27249495]
[1741157482217,0.33781501,592.04,590.93,1.27249495]
[1741157482417,0.31071638,592.03,590.93,1.27249495]
[1741157482623,0.33782642,592.02,590.93,1.27249495]
[1741157482824,0.31071638,592.01,590.93,1.27249495]
[1741157483025,0.33783783,592.0,590.93,1.27249495]
[1741157483218,0.31071638,591.99,590.93,1.27249495]
[1741157483425,0.33784925,591.98,590.93,1.27249495]
[1741157483723,0.31071638,591.97,590.93,1.27249495]
[1741157483924,0.64857133,591.97,590.92,1.27249495]
[1741157484124,0.31071638,591.96,590.92,1.27249495]
[1741157485620,0.31071638,591.96,590.91,1.27249495]
[1741157485825,0.31076392,591.95,590.91,1.27249495]
[1741157486019,0.31076392,591.96,590.91,1.27249495]
[1741157486224,0.31076392,591.95,590.91,1.27249495]
[1741157486423,0.31076392,591.94,590.91,1.27249495]
[1741157486620,0.31076392,591.93,590.91,1.27249495]
[1741157486827,0.31076392,591.96,590.91,1.27249495]
[1741157487025,0.31076392,591.95,590.91,1.27249495]
[1741157487227,0.31076392,591.96,590.91,1.27249495]
[1741157487725,0.31076392,591.96,590.89,3.03819322]
[1741157489030,0.31076392,591.96,590.89,1.76569827]
[1741157489223,0.33786637,591.95,590.89,1.76569827]
[1741157489428,0.31076392,591.94,590.89,1.76569827]
[1741157490029,0.33787778,591.93,590.87,1.27249495]
[1741157490231,0.31076392,591.92,590.89,1.76581773]
[1741157490529,0.3378892,591.91,590.89,1.76581773]
[1741157490729,0.31076392,591.9,590.89,1.76581773]
[1741157492928,0.31076392,591.9,590.72,1.25971013]
[1741157492929,0.31076392,591.89,590.72,1.25971013]
[1741157493130,0.31076392,591.88,590.71,1.25971013]
[1741157493431,0.31076392,591.87,590.71,1.25971013]
[1741157493631,0.31076392,592.09,590.72,1.76576546]
[1741157493830,0.31076392,592.08,590.72,1.76576546]
[1741157494025,1.97119767,592.29,590.72,1.76576546]
[1741157494235,0.31076392,592.28,590.72,1.76576546]
[1741157494531,0.31076392,592.27,590.72,1.76576546]
[1741157495028,0.31076392,592.26,590.72,1.76576546]
[1741157495233,1.20372678,592.27,590.72,1.76576546]
[1741157495234,0.31076392,592.25,590.72,1.76576546]
[1741157495533,0.31076392,592.24,590.76,1.25971013]
[1741157495730,0.31076392,592.23,590.76,1.25971013]
[1741157495926,3.17492445,592.24,590.76,1.25971013]
[1741157496229,1.76561615,592.22,590.76,1.25971013]
[1741157496532,0.31078121,592.21,590.76,1.25971013]
[1741157496732,1.97121496,592.21,590.76,1.25971013]
[1741157497032,0.31078121,592.2,590.76,1.25971013]
[1741157497235,4.47403393,592.2,590.76,1.25971013]
[1741157497433,2.93389105,592.19,590.74,1.76561615]
[1741157497628,4.13761783,592.18,590.74,1.76561615]
[1741157497827,2.93389105,592.17,590.74,1.76561615]
[1741157498028,2.16592378,592.16,590.74,1.76561615]
[1741157498330,0.31075765,592.15,590.74,1.76561615]
[1741157498733,0.31075765,592.19,590.74,1.76561615]
[1741157498930,0.31075765,592.18,590.64,1.27249495]
[1741157499131,0.31075765,592.17,590.74,1.76563854]
[1741157499329,0.31075765,592.16,590.74,1.76563854]
[1741157499528,2.93273699,592.18,590.48,1.27249495]
[1741157499729,1.27307259,592.17,590.48,1.27249495]
[1741157500034,0.31075765,592.16,590.48,1.27249495]
[1741157500234,0.31075765,592.17,590.48,1.27249495]
[1741157500434,0.31075765,592.16,590.48,1.27249495]